fUSD/lending_fUSD_20260519
["ID","MTS","AMOUNT","RATE_DAILY","PERIOD"]
[422622109,1779165034000,-371.97687373,0.00013698,2]
[422622106,1779165034000,-575.59111792,0.00013698,2]
[422622105,1779165034000,-574.66661323,0.00013698,2]
[422622107,1779165034000,-500.0,0.00013698,2]
[422622108,1779165034000,-209.60104111,0.00013698,2]
[422622111,1779165034000,-500.0,0.00013698,2]
[422622123,1779165034000,-2500.0,0.00013699,2]
[422622122,1779165034000,-14272.39,0.00013699,2]
[422622112,1779165034000,-500.0,0.00013698,2]
[422622124,1779165034000,-166.93,0.00013699,2]
[422622113,1779165034000,-500.0,0.00013698,2]
[422622114,1779165034000,-500.0,0.00013698,2]
[422622116,1779165034000,-500.0,0.00013698,2]
[422622120,1779165034000,-500.0,0.00013698,2]
[422622115,1779165034000,-500.0,0.00013698,2]
[422622118,1779165034000,-500.0,0.00013698,2]
[422622119,1779165034000,-500.0,0.00013698,2]
[422622121,1779165034000,-509.06477309,0.00013698,2]
[422622126,1779165034000,-404.08232307,0.00013699,2]
[422622127,1779165034000,-150.0,0.00013702,2]
[422622125,1779165034000,-200.0,0.00013699,2]
[422622131,1779165034000,-1712.42,0.00013713,2]
[422622133,1779165034000,-150.0,0.00013734,2]
[422622128,1779165034000,-11355.58024434,0.00013706,2]
[422622132,1779165034000,-150.0,0.00013724,2]
[422622161,1779165034000,-214.02246322,0.00013987,2]
[422622171,1779165034000,-150.0,0.00014047,2]
[422622165,1779165034000,-150.0,0.00014004,2]
[422622192,1779165034000,-150.0,0.00014237,2]
[422622197,1779165034000,-150.0,0.00014276,2]
[422622203,1779165034000,-150.0,0.0001432,2]
[422622200,1779165034000,-2459.00330573,0.00014303,2]
[422622205,1779165034000,-150.0,0.00014344,2]
[422622201,1779165034000,-150.0,0.00014315,2]
[422622202,1779165034000,-150.0,0.00014315,2]
[422622204,1779165034000,-150.0,0.00014338,2]
[422622199,1779165034000,-11355.58024434,0.00014303,2]
[422622198,1779165034000,-150.0,0.00014293,2]
[422622206,1779165034000,-150.0,0.00014355,2]
[422622207,1779165034000,-150.0,0.0001436,2]
[422622209,1779165034000,-150.0,0.00014382,2]
[422622208,1779165034000,-150.0,0.00014366,2]
[422622213,1779165034000,-150.0,0.00014418,2]
[422622160,1779165034000,-150.0,0.00013987,2]
[422622212,1779165034000,-150.0,0.00014405,2]
[422622219,1779165034000,-280.65504774,0.00014475,2]
[422622220,1779165034000,-150.0,0.00014487,2]
[422622217,1779165034000,-150.0,0.0001447,2]
[422622216,1779165034000,-150.0,0.00014449,2]
[422622211,1779165034000,-150.0,0.00014387,2]
[422622218,1779165034000,-150.0,0.00014472,2]
[422622210,1779165034000,-166.93,0.00014384,2]
[422622215,1779165034000,-150.0,0.00014434,2]
[422622222,1779165034000,-150.0,0.00014513,2]
[422622221,1779165034000,-150.0,0.00014494,2]
[422622191,1779165034000,-150.0,0.00014226,2]
[422622193,1779165034000,-150.0,0.00014247,21]
[422622214,1779165034000,-150.0,0.00014427,2]
[422622196,1779165034000,-150.0,0.00014271,2]
[422622194,1779165034000,-150.0,0.00014248,2]
[422622176,1779165034000,-150.0,0.00014092,2]
[422622164,1779165034000,-150.0,0.00014002,2]
[422622167,1779165034000,-2459.00330573,0.00014005,2]
[422622172,1779165034000,-280.65504774,0.00014049,2]
[422622166,1779165034000,-11355.58024434,0.00014005,2]
[422622168,1779165034000,-150.0,0.00014024,2]
[422622174,1779165034000,-150.0,0.00014069,2]
[422622169,1779165034000,-150.0,0.0001404,2]
[422622170,1779165034000,-166.93,0.00014041,2]
[422622173,1779165034000,-150.0,0.00014056,2]
[422622178,1779165034000,-150.0,0.00014114,2]
[422622188,1779165034000,-150.0,0.00014203,2]
[422622175,1779165034000,-150.0,0.00014087,2]
[422622179,1779165034000,-150.0,0.00014119,2]
[422622189,1779165034000,-150.0,0.00014211,2]
[422622180,1779165034000,-150.0,0.0001413,2]
[422622195,1779165034000,-150.0,0.00014263,2]
[422622190,1779165034000,-166.93,0.00014212,2]
[422622182,1779165034000,-150.0,0.00014136,2]
[422622185,1779165034000,-150.0,0.00014159,2]
[422622184,1779165034000,-150.0,0.00014159,2]
[422622181,1779165034000,-1764.96020796,0.00014133,2]
[422622186,1779165034000,-150.0,0.00014181,2]
[422622183,1779165034000,-150.0,0.00014154,2]
[422622177,1779165034000,-150.0,0.00014108,2]
[422622187,1779165034000,-150.0,0.00014198,2]
[422622246,1779165035000,-3292.0,0.00014696,2]
[422622238,1779165035000,-150.0,0.00014651,2]
[422622239,1779165035000,-150.0,0.00014653,2]
[422622235,1779165035000,-150.0,0.00014606,2]
[422622247,1779165035000,-150.0,0.00014718,2]
[422622237,1779165035000,-150.0,0.00014628,2]
[422622249,1779165035000,-150.0,0.0001474,2]
[422622252,1779165035000,-150.0,0.00014772,2]
[422622251,1779165035000,-150.0,0.00014763,2]
[422622250,1779165035000,-150.0,0.0001475,2]
[422622256,1779165035000,-150.0,0.00014807,2]
[422622254,1779165035000,-150.0,0.0001478,2]
[422622255,1779165035000,-150.0,0.00014785,2]
[422622236,1779165035000,-150.0,0.00014625,2]
[422622258,1779165035000,-150.0,0.00014829,2]
[422622248,1779165035000,-150.0,0.00014728,2]
[422622244,1779165035000,-150.0,0.00014687,2]
[422622225,1779165035000,-150.0,0.00014521,2]
[422622243,1779165035000,-736.0,0.00014686,2]
[422622268,1779165035000,-17960.44512725,0.000149,3]
[422622232,1779165035000,-150.0,0.00014592,2]
[422622223,1779165035000,-1764.96020796,0.00014516,2]
[422622224,1779165035000,-150.0,0.00014517,2]
[422622231,1779165035000,-150.0,0.00014584,2]
[422622227,1779165035000,-150.0,0.00014558,2]
[422622230,1779165035000,-150.0,0.00014573,2]
[422622228,1779165035000,-150.0,0.00014558,2]
[422622226,1779165035000,-150.0,0.00014539,2]
[422622229,1779165035000,-150.0,0.00014561,2]
[422622234,1779165035000,-2459.00330573,0.00014602,2]
[422622240,1779165035000,-150.0,0.00014671,2]
[422622241,1779165035000,-150.0,0.00014673,2]
[422622242,1779165035000,-150.0,0.00014676,2]
[422622233,1779165035000,-11355.58024434,0.00014602,2]
[422622245,1779165035000,-150.0,0.00014696,2]
[422622267,1779165035000,-359.69327265,0.000149,2]
[422622253,1779165035000,-150.0,0.00014772,2]
[422622261,1779165035000,-150.0,0.00014852,2]
[422622271,1779165035000,-11355.58024434,0.000149,2]
[422622277,1779165035000,-3762.69304131,0.000149,2]
[422622284,1779165035000,-254.67783396,0.00014986,2]
[422622295,1779165035000,-363.9364988,0.00014997,2]
[422622285,1779165035000,-152.10400648,0.00014986,2]
[422622294,1779165035000,-151.0,0.00014997,2]
[422622293,1779165035000,-172.65179056,0.00014987,2]
[422622283,1779165035000,-284.58525916,0.00014986,2]
[422622287,1779165035000,-157.50595746,0.00014986,2]
[422622286,1779165035000,-152.75252402,0.00014986,2]
[422622288,1779165035000,-151.71029879,0.00014986,2]
[422622291,1779165035000,-170.41262241,0.00014986,2]
[422622289,1779165035000,-150.48959402,0.00014986,2]
[422622290,1779165035000,-153.99235667,0.00014986,2]
[422622292,1779165035000,-268.63189169,0.00014986,2]
[422622282,1779165035000,-150.0,0.00014964,2]
[422622281,1779165035000,-150.0,0.00014942,2]
[422622263,1779165035000,-150.0,0.00014883,2]
[422622276,1779165035000,-737.66138502,0.000149,2]
[422622278,1779165035000,-150.0,0.00014907,2]
[422622257,1779165035000,-150.0,0.0001482,2]
[422622260,1779165035000,-150.0,0.00014831,2]
[422622262,1779165035000,-150.0,0.00014874,2]
[422622296,1779165035000,-17010.4290927,0.00014997,2]
[422622266,1779165035000,-199.9486709,0.00014899,2]
[422622259,1779165035000,-150.0,0.0001483,2]
[422622264,1779165035000,-150.0,0.00014897,2]
[422622269,1779165035000,-3764.1285,0.000149,2]
[422622272,1779165035000,-199.9486709,0.000149,2]
[422622270,1779165035000,-280.65504774,0.000149,2]
[422622273,1779165035000,-1764.96020796,0.000149,2]
[422622274,1779165035000,-172.92125947,0.000149,2]
[422622275,1779165035000,-2459.00330573,0.000149,2]
[422622280,1779165035000,-150.0,0.00014935,2]
[422622279,1779165035000,-150.0,0.00014919,2]
[422622265,1779165035000,-199.94867092,0.00014898,2]
[422622317,1779165041000,-500.0,0.00011374,2]
[422622320,1779165041000,-500.0,0.00011374,2]
[422622319,1779165041000,-500.0,0.00011374,2]
[422622324,1779165041000,-500.0,0.00011374,2]
[422622327,1779165041000,-199.53725598,0.00011374,2]
[422622329,1779165041000,-500.0,0.00011374,2]
[422622330,1779165041000,-500.0,0.00011374,2]
[422622326,1779165041000,-500.0,0.00011374,2]
[422622325,1779165041000,-500.0,0.00011374,2]
[422622333,1779165041000,-500.0,0.00011374,2]
[422622334,1779165041000,-500.0,0.00011374,2]
[422622331,1779165041000,-500.0,0.00011374,2]
[422622323,1779165041000,-500.0,0.00011374,2]
[422622328,1779165041000,-500.0,0.00011374,2]
[422622310,1779165041000,-500.0,0.00011374,2]
[422622311,1779165041000,-500.0,0.00011374,2]
[422622322,1779165041000,-500.0,0.00011374,2]
[422622309,1779165041000,-500.0,0.00011374,2]
[422622307,1779165041000,-500.0,0.00011374,2]
[422622303,1779165041000,-500.0,0.00011374,2]
[422622308,1779165041000,-500.0,0.00011374,2]
[422622304,1779165041000,-500.0,0.00011374,2]
[422622306,1779165041000,-500.0,0.00011374,2]
[422622305,1779165041000,-500.0,0.00011374,2]
[422622302,1779165041000,-500.0,0.00011374,2]
[422622337,1779165041000,-500.0,0.00011374,2]
[422622312,1779165041000,-500.0,0.00011374,2]
[422622313,1779165041000,-500.0,0.00011374,2]
[422622316,1779165041000,-500.0,0.00011374,2]
[422622314,1779165041000,-500.0,0.00011374,2]
[422622318,1779165041000,-500.0,0.00011374,2]
[422622315,1779165041000,-500.0,0.00011374,2]
[422622321,1779165041000,-500.0,0.00011374,2]
[422622335,1779165041000,-500.0,0.00011374,2]
[422622338,1779165041000,-500.0,0.00011374,2]
[422622336,1779165041000,-500.0,0.00011374,2]
[422622332,1779165041000,-500.0,0.00011374,2]
[422622359,1779165041000,-500.0,0.00014999,2]
[422622362,1779165041000,-518.89031973,0.00014999,2]
[422622360,1779165041000,-384.70703252,0.00014999,2]
[422622364,1779165041000,-500.0,0.00014999,2]
[422622365,1779165041000,-500.0,0.00014999,2]
[422622357,1779165041000,-500.0,0.00014999,2]
[422622367,1779165041000,-500.0,0.00014999,2]
[422622368,1779165041000,-500.0,0.00014999,2]
[422622366,1779165041000,-500.0,0.00014999,2]
[422622371,1779165041000,-500.0,0.00014999,2]
[422622369,1779165041000,-500.0,0.00014999,2]
[422622373,1779165041000,-497.4167401,0.00014999,2]
[422622372,1779165041000,-500.0,0.00014999,2]
[422622370,1779165041000,-500.0,0.00014999,2]
[422622353,1779165041000,-500.0,0.00014999,2]
[422622361,1779165041000,-500.0,0.00014999,2]
[422622355,1779165041000,-500.0,0.00014999,2]
[422622339,1779165041000,-150.0,0.00013694,2]
[422622349,1779165041000,-500.0,0.00014999,2]
[422622351,1779165041000,-500.0,0.00014999,2]
[422622344,1779165041000,-770333.1203279,0.00014997,2]
[422622358,1779165041000,-500.0,0.00014999,2]
[422622343,1779165041000,-9222.5018694,0.00014997,2]
[422622341,1779165041000,-172.92125946,0.000149,2]
[422622342,1779165041000,-2814.9009299,0.00014997,2]
[422622345,1779165041000,-328.3721186,0.00014998,2]
[422622348,1779165041000,-500.0,0.00014999,2]
[422622347,1779165041000,-2153.0431513,0.00014998,2]
[422622352,1779165041000,-509.12282674,0.00014999,2]
[422622356,1779165041000,-500.0,0.00014999,2]
[422622354,1779165041000,-500.0,0.00014999,2]
[422622346,1779165041000,-123223.8352065,0.00014998,2]
[422622363,1779165041000,-500.0,0.00014999,2]
[422622392,1779165042000,-413.32766839,0.00015,2]
[422622377,1779165042000,-300.0,0.00014999,2]
[422622374,1779165042000,-300.0,0.00014999,2]
[422622378,1779165042000,-300.0,0.00014999,2]
[422622380,1779165042000,-300.0,0.00014999,2]
[422622389,1779165042000,-1158.67285135,0.00015,2]
[422622383,1779165042000,-670.98749453,0.00014999,2]
[422622386,1779165042000,-14078.95110786,0.00015,2]
[422622384,1779165042000,-3770002.02472407,0.00015,2]
[422622400,1779165042000,-2093.68970089,0.00015,2]
[422622402,1779165042000,-448.0,0.00015,2]
[422622405,1779165042000,-903.93718342,0.00015,2]
[422622407,1779165042000,-18644.18065624,0.00015,2]
[422622409,1779165042000,-494.89856862,0.00015,2]
[422622412,1779165042000,-254.59021016,0.00015,2]
[422622396,1779165042000,-418.98263072,0.00015,2]
[422622444,1779165043000,-26134.74543443,0.00015,2]
[422622445,1779165043000,-375.18789012,0.00015,2]
[422622443,1779165043000,-4125.49186475,0.00015,2]
[422622513,1779165046000,-577.09443144,0.00015,2]
[422622517,1779165047000,-5274.16857488,0.00015,2]
[422622516,1779165047000,-338.89006486,0.00015,2]
[422622515,1779165047000,-1199.92,0.00015,2]
[422622514,1779165047000,-778.8551037,0.00015,2]
[422622528,1779165409000,673.8,0.0003013,120]
[422622530,1779165491000,1000.0,0.0003,120]
[422622531,1779165690000,181.17,0.00027553,120]
[422622532,1779165817000,153.74,6.36e-05,2]
[422622534,1779165817000,153.74,8.397e-05,2]
[422622535,1779165817000,153.74,9.415e-05,2]
[422622533,1779165817000,153.74,7.378e-05,2]
[422622536,1779166119000,1540.6497618,0.0001,2]
[422622537,1779166141000,1000.0,0.00030129,120]
[422622551,1779166231000,-391.7149367,0.00011477,2]
[422622554,1779166231000,-1200.0,0.00011606,2]
[422622555,1779166231000,-150.99,0.00011606,2]
[422622556,1779166231000,-81154.62,0.00011606,2]
[422622549,1779166231000,-186.91634163,0.00011477,2]
[422622550,1779166231000,-250.0,0.00011477,2]
[422622546,1779166231000,-150.0,0.00011329,2]
[422622545,1779166231000,-150.0,0.00011219,2]
[422622548,1779166231000,-153.74,0.00011452,2]
[422622544,1779166231000,-150.0,0.00011109,2]
[422622542,1779166231000,-153.74,0.00010433,2]
[422622543,1779166231000,-250.0,0.00010942,2]
[422622547,1779166231000,-150.0,0.00011439,2]
[422622552,1779166231000,-193.45225101,0.00011477,2]
[422622557,1779166231000,-9999.99,0.00011606,2]
[422622559,1779166231000,-7210.18,0.00011607,2]
[422622553,1779166231000,-150.0,0.00011549,2]
[422622572,1779166231000,-215.15951567,0.0001222,2]
[422622565,1779166231000,-248.0,0.00011769,2]
[422622564,1779166231000,-855.61,0.00011672,2]
[422622566,1779166231000,-221.5444,0.00012,2]
[422622567,1779166231000,-902.97,0.000121,2]
[422622562,1779166231000,-150.0,0.00011659,2]
[422622571,1779166231000,-2000.0,0.00012214,2]
[422622563,1779166231000,-150.0,0.00011666,2]
[422622561,1779166231000,-9999.99,0.00011607,2]
[422622560,1779166231000,-9999.99,0.00011607,2]
[422622558,1779166231000,-767.709577,0.00011607,2]
[422622569,1779166231000,-2000.0,0.0001211,2]
[422622570,1779166231000,-182.0,0.00012212,2]
[422622568,1779166231000,-163.43,0.000121,2]
[422622639,1779166232000,-500.0,0.00013311,2]
[422622643,1779166232000,-500.0,0.00013311,2]
[422622633,1779166232000,-500.0,0.00013311,2]
[422622635,1779166232000,-500.0,0.00013311,2]
[422622634,1779166232000,-500.0,0.00013311,2]
[422622623,1779166232000,-500.0,0.00013311,2]
[422622632,1779166232000,-500.0,0.00013311,2]
[422622624,1779166232000,-500.0,0.00013311,2]
[422622621,1779166232000,-500.0,0.00013311,2]
[422622631,1779166232000,-500.0,0.00013311,2]
[422622638,1779166232000,-500.0,0.00013311,2]
[422622619,1779166232000,-500.0,0.00013311,2]
[422622636,1779166232000,-500.0,0.00013311,2]
[422622644,1779166232000,-572.52845429,0.00013311,2]
[422622637,1779166232000,-500.0,0.00013311,2]
[422622641,1779166232000,-500.0,0.00013311,2]
[422622642,1779166232000,-500.0,0.00013311,2]
[422622655,1779166232000,-2139.04461938,0.00013311,2]
[422622645,1779166232000,-500.0,0.00013311,2]
[422622656,1779166232000,-2139.04461938,0.00013311,2]
[422622649,1779166232000,-500.0,0.00013311,2]
[422622646,1779166232000,-500.0,0.00013311,2]
[422622654,1779166232000,-2139.04461938,0.00013311,2]
[422622652,1779166232000,-500.0,0.00013311,2]
[422622647,1779166232000,-500.0,0.00013311,2]
[422622617,1779166232000,-500.0,0.00013311,2]
[422622640,1779166232000,-500.0,0.00013311,2]
[422622630,1779166232000,-500.0,0.00013311,2]
[422622580,1779166232000,-1570.22,0.00012591,2]
[422622627,1779166232000,-500.0,0.00013311,2]
[422622573,1779166232000,-208.58623393,0.0001222,2]
[422622578,1779166232000,-153.74,0.0001247,2]
[422622576,1779166232000,-167.84,0.0001239,2]
[422622648,1779166232000,-500.0,0.00013311,2]
[422622581,1779166232000,-4148.82,0.00012651,2]
[422622587,1779166232000,-150.0,0.00013183,2]
[422622574,1779166232000,-250.0,0.0001228,2]
[422622583,1779166232000,-1680.0,0.00012767,2]
[422622582,1779166232000,-181.17,0.00012758,2]
[422622585,1779166232000,-150.0,0.00013068,2]
[422622589,1779166232000,-3547.11,0.00013183,2]
[422622593,1779166232000,-615.86140846,0.0001321,2]
[422622595,1779166232000,-3671.7282,0.0001321,2]
[422622598,1779166232000,-1575.2234,0.0001321,2]
[422622600,1779166232000,-2500.0,0.00013213,2]
[422622610,1779166232000,-500.0,0.00013311,2]
[422622612,1779166232000,-500.0,0.00013311,2]
[422622609,1779166232000,-500.0,0.00013311,2]
[422622602,1779166232000,-10522.28809439,0.00013298,2]
[422622591,1779166232000,-152.0,0.00013197,2]
[422622607,1779166232000,-500.0,0.00013311,2]
[422622604,1779166232000,-24999.99,0.0001331,2]
[422622605,1779166232000,-500.0,0.00013311,2]
[422622625,1779166232000,-500.0,0.00013311,2]
[422622626,1779166232000,-500.0,0.00013311,2]
[422622628,1779166232000,-500.0,0.00013311,2]
[422622615,1779166232000,-500.0,0.00013311,2]
[422622629,1779166232000,-500.0,0.00013311,2]
[422622650,1779166232000,-500.0,0.00013311,2]
[422622707,1779166232000,-150.0,0.00013488,2]
[422622653,1779166232000,-500.0,0.00013311,2]
[422622689,1779166232000,-2064.89107258,0.00013311,2]
[422622694,1779166232000,-2064.89107258,0.00013311,2]
[422622688,1779166232000,-2064.89107258,0.00013311,2]
[422622693,1779166232000,-2064.89107258,0.00013311,2]
[422622691,1779166232000,-2064.89107258,0.00013311,2]
[422622690,1779166232000,-2064.89107258,0.00013311,2]
[422622692,1779166232000,-2064.89107258,0.00013311,2]
[422622695,1779166232000,-2064.89107258,0.00013311,2]
[422622696,1779166232000,-2064.89107258,0.00013311,2]
[422622698,1779166232000,-2064.89107258,0.00013311,2]
[422622697,1779166232000,-2064.89107258,0.00013311,2]
[422622699,1779166232000,-2064.89107258,0.00013311,2]
[422622700,1779166232000,-2064.89107258,0.00013311,2]
[422622702,1779166232000,-2064.89107258,0.00013311,2]
[422622714,1779166232000,-150.0,0.00013488,2]
[422622704,1779166232000,-116006.55,0.00013315,2]
[422622703,1779166232000,-500.0,0.00013312,2]
[422622708,1779166232000,-150.0,0.00013488,2]
[422622706,1779166232000,-10522.28809439,0.00013476,2]
[422622705,1779166232000,-615.86140843,0.00013398,2]
[422622711,1779166232000,-150.00000001,0.00013488,2]
[422622713,1779166232000,-150.0,0.00013488,2]
[422622709,1779166232000,-150.65153186,0.00013488,2]
[422622712,1779166232000,-150.0,0.00013488,2]
[422622710,1779166232000,-150.0,0.00013488,2]
[422622715,1779166232000,-150.0,0.00013488,2]
[422622651,1779166232000,-500.0,0.00013311,2]
[422622686,1779166232000,-2139.04461938,0.00013311,2]
[422622684,1779166232000,-2139.04461938,0.00013311,2]
[422622701,1779166232000,-2064.89107258,0.00013311,2]
[422622687,1779166232000,-2139.04461938,0.00013311,2]
[422622685,1779166232000,-2139.04461938,0.00013311,2]
[422622659,1779166232000,-2139.04461938,0.00013311,2]
[422622660,1779166232000,-2139.04461938,0.00013311,2]
[422622663,1779166232000,-2139.04461938,0.00013311,2]
[422622658,1779166232000,-2139.04461938,0.00013311,2]
[422622668,1779166232000,-2139.04461938,0.00013311,2]
[422622666,1779166232000,-2139.04461938,0.00013311,2]
[422622662,1779166232000,-2139.04461938,0.00013311,2]
[422622657,1779166232000,-2139.04461938,0.00013311,2]
[422622669,1779166232000,-2139.04461938,0.00013311,2]
[422622664,1779166232000,-2139.04461938,0.00013311,2]
[422622667,1779166232000,-2139.04461938,0.00013311,2]
[422622665,1779166232000,-2139.04461938,0.00013311,2]
[422622671,1779166232000,-2139.04461938,0.00013311,2]
[422622661,1779166232000,-2139.04461938,0.00013311,2]
[422622683,1779166232000,-2139.04461938,0.00013311,2]
[422622670,1779166232000,-2139.04461938,0.00013311,2]
[422622680,1779166232000,-2139.04461938,0.00013311,2]
[422622679,1779166232000,-2139.04461938,0.00013311,2]
[422622673,1779166232000,-2139.04461938,0.00013311,2]
[422622675,1779166232000,-2139.04461938,0.00013311,2]
[422622676,1779166232000,-2139.04461938,0.00013311,2]
[422622674,1779166232000,-2139.04461938,0.00013311,2]
[422622672,1779166232000,-2139.04461938,0.00013311,2]
[422622678,1779166232000,-2139.04461938,0.00013311,2]
[422622681,1779166232000,-2139.04461938,0.00013311,2]
[422622682,1779166232000,-2139.04461938,0.00013311,2]
[422622677,1779166232000,-2139.04461938,0.00013311,2]
[422622756,1779166233000,-500.0,0.00013915,7]
[422622757,1779166233000,-500.0,0.00013915,7]
[422622764,1779166233000,-480.02475387,0.00013915,7]
[422622763,1779166233000,-155.60792497,0.00013915,7]
[422622758,1779166233000,-500.0,0.00013915,7]
[422622747,1779166233000,-615.86140843,0.00013773,2]
[422622760,1779166233000,-500.0,0.00013915,7]
[422622754,1779166233000,-160.0,0.00013893,2]
[422622752,1779166233000,-150.0,0.00013862,2]
[422622749,1779166233000,-10522.28809439,0.00013832,2]
[422622748,1779166233000,-150.0,0.00013796,2]
[422622759,1779166233000,-292.47642032,0.00013915,7]
[422622753,1779166233000,-150.0,0.00013884,2]
[422622773,1779166233000,-150.0,0.00013987,2]
[422622762,1779166233000,-500.0,0.00013915,7]
[422622755,1779166233000,-243.466459,0.00013893,2]
[422622761,1779166233000,-500.0,0.00013915,7]
[422622766,1779166233000,-150.0,0.00013916,2]
[422622769,1779166233000,-187.930393,0.00013952,2]
[422622770,1779166233000,-615.86140843,0.00013961,2]
[422622771,1779166233000,-150.0,0.00013973,2]
[422622768,1779166233000,-2815.75058356,0.00013935,2]
[422622767,1779166233000,-150.0,0.00013928,2]
[422622776,1779166233000,-150.0,0.00014017,2]
[422622774,1779166233000,-250.0,0.00014,2]
[422622778,1779166233000,-2351.0,0.00014044,2]
[422622750,1779166233000,-150.0,0.0001384,2]
[422622765,1779166233000,-150.0,0.00013916,2]
[422622751,1779166233000,-163.61,0.00013852,2]
[422622716,1779166233000,-150.0,0.00013532,2]
[422622741,1779166233000,-200.0,0.00013699,2]
[422622718,1779166233000,-615.86140843,0.00013586,2]
[422622777,1779166233000,-500.0,0.00014027,2]
[422622721,1779166233000,-150.0,0.0001362,2]
[422622722,1779166233000,-2000.0,0.00013624,2]
[422622723,1779166233000,-19611.25,0.00013629,2]
[422622719,1779166233000,-150.0,0.00013613,2]
[422622717,1779166233000,-150.0,0.00013576,2]
[422622725,1779166233000,-150.0,0.00013664,2]
[422622720,1779166233000,-184.04,0.00013615,2]
[422622726,1779166233000,-200.0,0.00013692,2]
[422622724,1779166233000,-10522.28809439,0.00013654,2]
[422622727,1779166233000,-500.0,0.00013698,2]
[422622729,1779166233000,-500.0,0.00013698,2]
[422622745,1779166233000,-150.0,0.00013737,2]
[422622739,1779166233000,-150.0090512,0.00013698,2]
[422622730,1779166233000,-500.0,0.00013698,2]
[422622731,1779166233000,-500.0,0.00013698,2]
[422622735,1779166233000,-500.0,0.00013698,2]
[422622733,1779166233000,-500.0,0.00013698,2]
[422622737,1779166233000,-150.0090512,0.00013698,2]
[422622734,1779166233000,-518.89031973,0.00013698,2]
[422622738,1779166233000,-150.0090512,0.00013698,2]
[422622736,1779166233000,-500.0,0.00013698,2]
[422622740,1779166233000,-150.0090512,0.00013698,2]
[422622742,1779166233000,-150.0,0.00013702,2]
[422622744,1779166233000,-150.0,0.00013708,2]
[422622746,1779166233000,-150.0,0.00013752,2]
[422622743,1779166233000,-150.0,0.00013702,2]
[422622728,1779166233000,-500.0,0.00013698,2]
[422622772,1779166233000,-150.0,0.00013987,2]
[422622732,1779166233000,-500.0,0.00013698,2]
[422622780,1779166233000,-150.0,0.00014061,2]
[422622810,1779166233000,-150.0,0.00014457,2]
[422622811,1779166233000,-150.0,0.00014487,2]
[422622812,1779166233000,-150.0,0.00014487,2]
[422622813,1779166233000,-1038.63531885,0.000145,2]
[422622817,1779166233000,-150.0,0.00014546,2]
[422622816,1779166233000,-10522.28809439,0.00014544,2]
[422622820,1779166233000,-150.0,0.0001459,2]
[422622821,1779166233000,-150.0,0.00014612,2]
[422622826,1779166233000,-2815.75058356,0.00014659,2]
[422622827,1779166233000,-150.0,0.00014678,2]
[422622822,1779166233000,-150.0,0.00014634,2]
[422622818,1779166233000,-150.0,0.00014558,2]
[422622825,1779166233000,-500.0,0.00014652,2]
[422622809,1779166233000,-2815.75058356,0.00014418,2]
[422622824,1779166233000,-500.0,0.00014652,2]
[422622828,1779166233000,-615.86140843,0.00014712,2]
[422622829,1779166233000,-500.0,0.00014713,2]
[422622837,1779166233000,-150.0,0.00014772,2]
[422622830,1779166233000,-500.0,0.00014713,2]
[422622832,1779166233000,-161.53708453,0.00014713,2]
[422622831,1779166233000,-500.0,0.00014713,2]
[422622839,1779166233000,-374.26042252,0.00014787,2]
[422622838,1779166233000,-150.0,0.00014772,2]